bitfinex/quotes_SOLUSD_20251117
["timestamp","ask_amount","ask_price","bid_price","bid_amount"]
[1763375250596,0.72,142.52,142.49,25.96317082]
[1763375251005,0.72,142.52,142.49,26.62317082]
[1763375251989,0.72,142.52,142.49,25.96317082]
[1763375254211,0.72,142.52,142.49,26.62317082]
[1763375256120,0.72,142.52,142.49,0.66]
[1763375256413,106.23197082,142.52,142.48,22.6512]
[1763375256621,3.31197082,142.51,142.46,3.31197082]
[1763375256825,3.31197082,142.5,142.46,3.31197082]
[1763375257026,3.31197082,142.49,142.44,7.28394164]
[1763375257194,3.31197082,142.46,142.4,0.1]
[1763375257396,3.31197082,142.46,142.41,3.97197082]
[1763375257613,0.68,142.45,142.41,3.97197082]
[1763375257806,0.68,142.45,142.42,22.6512]
[1763375258310,3.99197082,142.45,142.4,4.07197082]
[1763375258716,0.68,142.44,142.42,22.6512]
[1763375260898,3.31197082,142.43,142.4,0.1]
[1763375261325,0.14216157,142.47,142.4,0.1]
[1763375261326,3.99197082,142.42,142.4,0.1]
[1763375261701,0.68,142.41,142.4,0.1]
[1763375263316,3.99197082,142.44,142.4,0.76]
[1763375263628,0.13348631,142.41,142.4,4.07197082]
[1763375264212,0.13348631,142.41,142.4,11.09444273]
[1763375264608,0.13348631,142.41,142.4,13.90847065]
[1763375266509,0.13348631,142.41,142.4,11.09444273]
[1763375266923,0.13348631,142.41,142.4,9.90720977]
[1763375267736,0.13348631,142.41,142.4,2.88473786]
[1763375272038,0.13348631,142.41,142.4,25.53593786]
[1763375272626,0.13348631,142.41,142.4,22.7512]
[1763375274912,0.13348631,142.41,142.4,25.53593786]
[1763375277142,0.13348631,142.41,142.4,28.35055982]
[1763375281142,0.13348631,142.41,142.4,35.37303173]
[1763375283636,0.28404206,142.41,142.4,35.37303173]
[1763375284848,0.28404206,142.41,142.4,2.91462196]
[1763375285022,0.99404206,142.41,142.4,0.1]
[1763375285214,0.28404206,142.41,142.4,0.1]
[1763375285420,0.99404206,142.41,142.4,0.1]
[1763375285645,0.86055575,142.41,142.4,0.1]
[1763375287951,2.98529361,142.41,142.4,0.1]
[1763375288350,0.86055575,142.41,142.4,0.1]
[1763375289223,2.98529361,142.41,142.4,0.1]
[1763375289850,12.91628287,142.41,142.4,0.1]
[1763375291445,0.86055575,142.41,142.4,0.1]
[1763375291634,2.98529361,142.41,142.4,0.1]
[1763375293639,0.86055575,142.41,142.4,0.1]
[1763375293835,2.98529361,142.41,142.4,0.1]
[1763375294967,105.18529361,142.41,142.4,0.1]
[1763375296153,103.06055575,142.41,142.4,0.1]
[1763375297064,105.18529361,142.41,142.4,0.1]
[1763375298162,103.06055575,142.41,142.4,0.1]
[1763375300363,115.11628287,142.41,142.4,0.1]
[1763375302064,105.18529361,142.41,142.4,0.1]
[1763375303547,105.32746545,142.41,142.4,0.1]
[1763375304975,115.25845471,142.41,142.4,0.1]
[1763375305150,13.05845471,142.41,142.4,0.1]
[1763375305643,12.90789896,142.41,142.4,0.1]
[1763375311861,44.58107775,142.41,142.4,0.1]
[1763375312369,44.58107775,142.41,142.36,0.1]
[1763375312577,12.05572712,142.37,142.36,0.1]
[1763375313064,12.73572712,142.37,142.36,0.1]
[1763375322491,32.44002769,142.35,142.34,0.1]
[1763375322694,9.78882769,142.34,142.33,0.1]
[1763375322902,43.20587856,142.31,142.3,0.1]
[1763375323490,43.88587856,142.31,142.3,0.1]
[1763375323688,44.03180991,142.31,142.3,0.1]
[1763375324978,9.93098926,142.3,142.27,0.2]
[1763375325176,12.05572712,142.28,142.27,0.2]
[1763375325572,12.73572712,142.28,142.27,0.2]
[1763375326764,13.94155266,142.28,142.27,0.2]
[1763375327366,13.26155266,142.28,142.27,0.2]
[1763375327571,13.94155266,142.28,142.27,0.2]
[1763375330078,10.61098926,142.28,142.27,0.2]
[1763375330288,13.94155266,142.28,142.27,0.2]
[1763375337188,9.93098926,142.27,142.26,0.2]
[1763375337382,13.94155266,142.27,142.26,0.2]
[1763375339497,20.97044139,142.27,142.26,0.2]
[1763375339811,13.94155266,142.27,142.26,0.2]
[1763375340612,32.58218926,142.25,142.24,0.2]
[1763375340789,9.93098926,142.24,142.21,0.1]
[1763375340987,35.91275266,142.23,142.21,0.1]
[1763375341289,36.62275266,142.23,142.21,0.1]
[1763375342792,43.65361815,142.23,142.21,0.1]
[1763375343402,9.78882769,142.21,142.2,0.1]
[1763375343627,0.14216157,142.19,142.15,0.1]
[1763375343927,32.58218926,142.16,142.15,0.1]
[1763375344088,36.62275266,142.16,142.15,0.1]
[1763375345288,15.97155266,142.16,142.15,0.1]
[1763375345593,35.91275266,142.14,142.13,0.2]
[1763375345992,43.65806995,142.14,142.13,0.2]
[1763375346194,36.62275266,142.14,142.13,0.2]
[1763375346710,43.65806995,142.14,142.07,0.1]
[1763375347012,13.26155266,142.08,142.07,0.81]
[1763375347990,13.26155266,142.08,142.07,0.1]
[1763375347991,13.97155266,142.08,142.07,0.1]
[1763375348188,9.93098926,142.08,142.07,0.1]
[1763375348397,13.26155266,142.08,142.07,0.1]
[1763375350846,9.78882769,142.08,142.07,0.81]
[1763375351123,9.78882769,142.1,142.07,0.81]
[1763375351334,13.11939109,142.1,142.07,0.81]
[1763375351931,3.3305634,142.09,142.07,0.81]
[1763375352311,13.11939109,142.1,142.07,0.81]
[1763375354609,9.78882769,142.1,142.07,0.81]
[1763375355224,105.67272497,142.11,142.07,0.81]
[1763375355428,102.34216157,142.11,142.07,4.1405634]
[1763375355921,102.34216157,142.11,142.08,0.71]
[1763375356700,105.67272497,142.11,142.08,0.71]
[1763375359424,102.34216157,142.11,142.08,0.71]
[1763375360232,102.34216157,142.11,142.08,4.0405634]
[1763375360449,102.34216157,142.11,142.09,3.3305634]
[1763375360607,102.34216157,142.11,142.09,4.0305634]
[1763375360809,112.13098926,142.11,142.1,0.7]
[1763375361812,102.2,142.11,142.1,4.0305634]
[1763375362634,0.14216157,142.14,142.1,4.0305634]
[1763375362928,0.14216157,142.14,142.11,0.7]
[1763375363108,9.78882769,142.15,142.11,0.7]
[1763375363632,0.14752353,142.12,142.11,0.7]
[1763375363829,0.14752353,142.12,142.11,4.0305634]
[1763375364827,0.14752353,142.12,142.11,0.7]
[1763375368235,0.14752353,142.12,142.11,4.0305634]
[1763375368445,0.14752353,142.12,142.11,0.7]
[1763375369938,0.14752353,142.12,142.11,4.0305634]
[1763375370440,0.14752353,142.12,142.11,0.7]
[1763375370625,0.14752353,142.12,142.11,4.0305634]
[1763375373024,0.14752353,142.12,142.11,0.7]
[1763375373730,0.14752353,142.12,142.1,0.66]
[1763375377818,0.14752353,142.12,142.1,3.9905634]
[1763375378732,0.14752353,142.12,142.1,3.3305634]
[1763375378932,0.14752353,142.12,142.11,0.66]
[1763375379262,0.14752353,142.12,142.1,0.66]
[1763375379545,0.14752353,142.12,142.11,0.66]
[1763375383534,0.27677522,142.12,142.11,0.66]
[1763375385648,0.12925169,142.12,142.11,0.66]
[1763375386152,0.12925169,142.12,142.09,0.66]
[1763375386367,0.12925169,142.12,142.09,3.3305634]
[1763375386650,0.12925169,142.12,142.1,0.66]
[1763375395068,0.12925169,142.12,142.1,2.79502025]
[1763375395436,0.12925169,142.12,142.11,0.66]
[1763375396847,0.12925169,142.12,142.1,2.13502025]
[1763375397367,0.12925169,142.12,142.1,2.79502025]
[1763375399167,10.06024095,142.12,142.1,0.66]
[1763375400374,10.06024095,142.12,142.1,2.79502025]
[1763375400870,10.06024095,142.12,142.1,0.66]
[1763375402369,10.06024095,142.12,142.1,2.79502025]
[1763375403565,0.14173215,142.11,142.1,2.79502025]
[1763375406648,0.14173215,142.11,142.1,27.5812405]
[1763375407570,0.13624158,142.12,142.1,41.02359892]
[1763375407769,0.13557341,142.13,142.11,2.81502025]
[1763375407942,0.13557341,142.13,142.12,2.81502025]
[1763375408459,0.13557341,142.13,142.1,31.191281]
[1763375408460,0.13557341,142.13,142.11,2.81502025]
[1763375408661,0.13557341,142.13,142.12,2.81502025]
[1763375409067,0.13557341,142.13,142.12,0.68]
[1763375409474,0.13557341,142.13,142.11,0.68]
[1763375409772,0.84557341,142.13,142.09,2.13502025]
[1763375409949,0.84557341,142.13,142.08,25.46622025]
[1763375410151,9.9244011,142.13,142.1,2.13502025]
[1763375410593,0.13557341,142.13,142.11,0.68]
[1763375411151,0.13557341,142.13,142.11,2.81502025]
[1763375412957,0.13557341,142.13,142.12,2.81502025]
[1763375415783,0.13557341,142.13,142.12,25.46622025]
[1763375419288,0.13557341,142.13,142.12,24.78622025]
[1763375419598,0.13557341,142.13,142.11,2.85502025]
[1763375419764,0.13557341,142.13,142.11,2.13502025]
[1763375419960,0.13557341,142.13,142.12,2.85502025]
[1763375423181,0.13557341,142.13,142.12,0.72]
[1763375423486,0.13557341,142.13,142.12,2.85502025]
[1763375423791,0.28953689,142.13,142.12,2.85502025]
[1763375424889,0.28953689,142.13,142.12,2.13502025]
[1763375425578,0.86396348,142.13,142.1,2.13502025]
[1763375425790,102.2,142.12,142.09,2.13502025]
[1763375426290,0.14216157,142.09,142.07,0.1]
[1763375426461,9.93098926,142.08,142.07,0.1]
[1763375426667,0.71,142.09,142.07,0.1]
[1763375426970,9.93098926,142.1,142.07,2.95502025]
[1763375427468,0.71,142.09,142.07,0.1]
[1763375428178,9.93098926,142.1,142.07,0.1]
[1763375428488,10.64098926,142.1,142.07,0.1]
[1763375428894,10.64098926,142.1,142.07,2.23502025]
[1763375429096,0.15396348,142.13,142.09,2.13502025]
[1763375429269,0.15396348,142.13,142.08,0.72]
[1763375429467,0.15396348,142.13,142.12,2.13502025]
[1763375430374,0.15396348,142.13,142.11,0.72]
[1763375430622,0.71,142.12,142.08,0.72]
[1763375430801,0.71,142.12,142.08,23.3712]
[1763375430967,0.71,142.12,142.1,2.13502025]
[1763375431167,0.86396348,142.13,142.1,2.13502025]
[1763375431367,0.86396348,142.13,142.08,0.72]
[1763375431686,0.86396348,142.13,142.1,2.13502025]
[1763375432380,0.86396348,142.13,142.09,0.72]
[1763375432786,0.86396348,142.13,142.1,2.13502025]
[1763375433099,0.86396348,142.13,142.12,2.13502025]
[1763375433100,0.15396348,142.13,142.12,2.13502025]
[1763375433481,0.15396348,142.13,142.12,2.85502025]
[1763375436302,0.15012049,142.14,142.12,2.85502025]
[1763375436507,0.15012049,142.14,142.13,2.85502025]
[1763375437576,0.15012049,142.14,142.13,0.72]
[1763375437798,0.15012049,142.14,142.13,25.50622025]
[1763375440902,0.15012049,142.14,142.12,2.13502025]
[1763375440903,0.86012049,142.14,142.12,2.13502025]
[1763375441282,0.15012049,142.14,142.13,2.13502025]
[1763375441479,0.15012049,142.14,142.12,2.13502025]
[1763375443108,0.15012049,142.14,142.13,2.13502025]
[1763375443601,0.30003089,142.14,142.13,2.13502025]
[1763375445505,0.8599104,142.14,142.12,2.13502025]
[1763375445805,0.8599104,142.14,142.11,2.13502025]
[1763375446580,0.8599104,142.14,142.1,22.6512]
[1763375446906,0.8599104,142.14,142.11,3.33493691]
[1763375447104,0.8599104,142.14,142.08,0.72]
[1763375447310,102.2,142.13,142.1,3.33493691]
[1763375447905,0.71,142.12,142.1,3.33493691]
[1763375448225,0.71,142.12,142.09,3.33493691]
[1763375449016,0.71,142.12,142.08,0.72]
[1763375449204,0.71,142.12,142.09,3.33493691]
[1763375449824,0.71,142.12,142.1,3.33493691]
[1763375452026,0.71,142.12,142.08,0.72]
[1763375452335,0.71,142.12,142.09,3.33493691]
[1763375453508,0.71,142.12,142.1,3.33493691]
[1763375454609,0.71,142.12,142.08,0.72]
[1763375454810,0.71,142.12,142.1,3.33493691]
[1763375455324,0.71,142.12,142.08,0.72]
[1763375455507,0.71,142.12,142.1,3.33493691]
[1763375457631,102.2,142.11,142.1,3.33493691]
[1763375457830,102.2,142.11,142.09,3.33493691]
[1763375458604,102.2,142.11,142.1,3.33493691]
[1763375459431,102.91,142.11,142.1,3.33493691]
[1763375460211,10.08089966,142.14,142.1,4.05493691]
[1763375460212,9.93873809,142.14,142.1,4.05493691]
[1763375460410,9.93873809,142.14,142.12,3.33493691]
[1763375460612,10.61873809,142.14,142.12,3.33493691]
[1763375461220,9.93873809,142.14,142.12,3.33493691]
[1763375461647,10.61873809,142.14,142.11,3.33493691]
[1763375461935,10.61873809,142.14,142.11,4.04493691]
[1763375462539,9.93873809,142.14,142.11,0.71]
[1763375462745,10.61873809,142.14,142.12,3.33493691]
[1763375463115,10.61873809,142.14,142.1,0.71]
[1763375463337,10.61873809,142.14,142.11,3.33493691]
[1763375463717,0.14527433,142.11,142.08,22.6512]
[1763375463927,0.14527433,142.11,142.1,3.33493691]
[1763375464145,0.14527433,142.11,142.1,0.20343691]
[1763375464329,0.14527433,142.11,142.1,0.91343691]
[1763375466748,0.14527433,142.11,142.1,0.71]
[1763375467047,0.14527433,142.11,142.1,4.04493691]
[1763375470744,0.82527433,142.11,142.08,3.33493691]
[1763375470946,0.82527433,142.11,142.09,3.33493691]
[1763375471151,0.14527433,142.11,142.1,3.33493691]
[1763375472950,0.14527433,142.11,142.09,0.71]
[1763375473128,0.14527433,142.11,142.1,3.33493691]
[1763375474238,0.14527433,142.11,142.09,0.71]
[1763375474747,0.14527433,142.11,142.1,3.33493691]
[1763375475749,0.14527433,142.11,142.09,0.71]
[1763375475931,0.14527433,142.11,142.1,3.33493691]
[1763375476846,0.14527433,142.11,142.09,0.71]
[1763375477156,0.14527433,142.11,142.1,3.33493691]
[1763375479025,0.14527433,142.11,142.09,4.04493691]
[1763375479934,102.2,142.1,142.07,3.43493691]
[1763375480131,112.13098926,142.09,142.07,0.1]
[1763375480450,112.13098926,142.08,142.07,0.1]
[1763375480671,112.81098926,142.08,142.07,0.1]
[1763375481156,116.14592617,142.08,142.07,0.1]
[1763375481529,112.81098926,142.08,142.07,0.1]
[1763375483737,112.94305378,142.08,142.07,0.1]
[1763375484063,116.27799069,142.08,142.07,0.1]
[1763375484442,14.07799069,142.08,142.07,0.1]
[1763375485060,10.74305378,142.08,142.07,0.1]
[1763375485228,10.60089221,142.08,142.07,0.1]
[1763375485555,10.74305378,142.08,142.07,0.1]
[1763375485761,0.13206452,142.08,142.07,4.08493691]
[1763375486834,0.13206452,142.08,142.07,26.73613691]
[1763375487332,0.13206452,142.08,142.07,23.4012]
[1763375487528,0.13206452,142.08,142.07,26.73613691]
[1763375489960,0.13206452,142.08,142.07,4.08493691]
[1763375499051,0.12774218,142.09,142.07,4.08493691]
[1763375499384,0.12774218,142.09,142.08,4.02493691]
[1763375500286,0.12774218,142.09,142.08,23.3412]
[1763375500488,0.12774218,142.09,142.08,4.02493691]
[1763375503486,0.12774218,142.09,142.08,0.69]
[1763375503676,0.26782488,142.09,142.08,4.02493691]
[1763375505677,0.1400827,142.09,142.08,4.02493691]
[1763375507588,0.1400827,142.09,142.08,14.3981621]
[1763375508657,0.1400827,142.09,142.08,7.35987382]
[1763375508870,0.13938964,142.1,142.08,11.35788005]
[1763375509081,0.13938964,142.1,142.09,34.00908005]
[1763375512364,0.13938964,142.1,142.09,41.04687299]
[1763375512562,0.13938964,142.1,142.09,18.39567299]
[1763375513218,0.15140984,142.11,142.1,22.6512]
[1763375513506,0.15140984,142.11,142.1,34.00908005]
[1763375516387,0.15140984,142.11,142.1,41.04637772]
[1763375517387,0.15140984,142.11,142.1,34.00908005]
[1763375517593,0.15140984,142.11,142.09,23.3412]
[1763375517886,0.15140984,142.11,142.1,25.47477601]
[1763375518292,0.15140984,142.11,142.1,2.13357601]
[1763375518992,0.15140984,142.11,142.1,24.78477601]
[1763375519313,0.85140984,142.11,142.1,22.6512]
[1763375519512,0.85140984,142.11,142.1,24.78477601]
[1763375520399,0.15140984,142.11,142.1,2.13357601]
[1763375521417,0.15140984,142.11,142.1,11.36788005]
[1763375521718,0.15257783,142.12,142.1,18.40517772]
[1763375521915,0.12982253,142.13,142.12,24.78477601]
[1763375522088,0.13201993,142.14,142.12,24.78477601]
[1763375522410,0.13201993,142.14,142.13,2.83357601]
[1763375522619,0.13201993,142.14,142.13,9.86938829]
[1763375522828,0.13201993,142.14,142.13,2.83357601]
[1763375523685,0.28408801,142.14,142.13,2.83357601]
[1763375524720,0.28408801,142.14,142.13,32.52058829]
[1763375525515,0.15206808,142.14,142.13,32.52058829]
[1763375525930,0.15206808,142.14,142.13,25.48477601]
[1763375526437,0.15206808,142.14,142.13,32.52058829]
[1763375528555,0.14354631,142.18,142.15,32.58218926]
[1763375528724,0.14142515,142.23,142.19,22.6512]
[1763375528725,0.80142515,142.23,142.19,22.6512]
[1763375529051,0.80142515,142.23,142.19,25.48477601]
[1763375529212,0.14142515,142.23,142.19,25.48477601]
[1763375529808,0.80142515,142.23,142.19,25.48477601]
[1763375530455,0.14142515,142.23,142.19,25.48477601]
[1763375530752,0.14142515,142.23,142.2,32.51691508]
[1763375531050,0.14142515,142.23,142.21,24.78477601]
[1763375531243,0.14142515,142.23,142.21,25.48477601]
[1763375533021,0.14142515,142.23,142.21,46.92864901]
[1763375533436,0.14142515,142.23,142.21,53.9605033]
[1763375535138,0.2,142.25,142.21,56.79726473]
[1763375535327,0.2,142.25,142.24,4.26715202]
[1763375535723,0.2,142.25,142.24,4.96715202]
[1763375536629,0.2,142.26,142.24,11.36788005]
[1763375536848,0.2,142.28,142.27,22.6512]
[1763375537062,0.86,142.28,142.27,24.78477601]
[1763375541059,0.86,142.28,142.27,2.13357601]
[1763375541955,0.86,142.28,142.26,2.13357601]
[1763375542154,0.7,142.27,142.26,2.13357601]
[1763375543659,0.84557621,142.27,142.26,2.13357601]
[1763375546257,0.84557621,142.27,142.24,22.6512]
[1763375546461,0.84557621,142.27,142.23,2.13357601]
[1763375546762,0.84557621,142.27,142.24,2.13357601]
[1763375549574,0.14557621,142.27,142.26,2.13357601]
[1763375549755,0.84557621,142.27,142.26,2.13357601]
[1763375550263,0.14557621,142.27,142.26,2.13357601]
[1763375550468,0.14557621,142.27,142.26,25.48477601]
[1763375558810,0.79557621,142.27,142.23,23.3212]
[1763375558986,0.79557621,142.27,142.26,2.13357601]
[1763375563901,0.93280754,142.27,142.26,2.13357601]
[1763375565695,0.78723133,142.27,142.26,2.13357601]
[1763375568790,0.78723133,142.27,142.26,3.32750768]
[1763375575084,0.78723133,142.27,142.25,3.32750768]
[1763375575286,0.78723133,142.27,142.23,22.6512]
[1763375575487,0.78723133,142.27,142.25,3.32750768]
[1763375577499,0.78723133,142.27,142.26,3.32750768]
[1763375577683,0.78723133,142.27,142.23,23.3212]
[1763375577887,0.78723133,142.27,142.26,3.32750768]
[1763375580011,0.78723133,142.27,142.23,23.3212]
[1763375580218,0.78723133,142.27,142.26,3.32750768]
[1763375583317,0.13723133,142.27,142.26,3.32750768]
[1763375583523,0.81723133,142.27,142.26,3.32750768]
[1763375583725,0.95338962,142.27,142.26,3.32750768]
[1763375584518,0.27338962,142.27,142.26,3.32750768]
[1763375584720,0.95338962,142.27,142.26,3.32750768]
[1763375585026,0.95338962,142.27,142.23,3.32750768]
[1763375585225,0.68,142.26,142.23,3.32750768]
[1763375586105,0.68,142.26,142.24,3.32750768]
[1763375588343,0.68,142.26,142.22,3.32750768]
[1763375588502,0.68,142.26,142.23,3.32750768]
[1763375590501,0.68,142.26,142.24,3.32750768]
[1763375590814,0.13615829,142.27,142.25,3.32750768]
[1763375591031,0.13615829,142.27,142.26,25.97870768]
[1763375591425,0.13615829,142.27,142.26,26.68870768]
[1763375595145,0.13615829,142.27,142.26,4.03750768]
[1763375597031,0.13615829,142.27,142.26,3.32750768]
[1763375597644,0.13615829,142.27,142.26,4.03750768]
[1763375598948,0.13615829,142.27,142.26,3.32750768]
[1763375599336,0.82615829,142.27,142.26,3.32750768]
[1763375603661,0.96610137,142.27,142.26,3.32750768]
[1763375605639,0.13994308,142.27,142.26,3.32750768]
[1763375606147,0.82994308,142.27,142.26,3.32750768]
[1763375606879,0.13994308,142.27,142.26,3.32750768]
[1763375607060,0.82994308,142.27,142.26,3.32750768]
[1763375608257,0.13994308,142.27,142.26,3.32750768]
[1763375608755,0.82994308,142.27,142.26,3.32750768]
[1763375608966,0.13994308,142.27,142.26,3.32750768]
[1763375609367,0.82994308,142.27,142.26,3.32750768]
[1763375612451,0.13994308,142.27,142.26,3.32750768]
[1763375613269,9.92877077,142.27,142.2,30.90575603]
[1763375613475,0.13994308,142.27,142.26,3.32750768]
[1763375614675,0.13994308,142.27,142.26,4.01750768]
[1763375614862,0.13994308,142.27,142.26,3.32750768]
[1763375617480,0.13994308,142.27,142.25,4.01750768]
[1763375618500,0.13994308,142.27,142.25,26.66870768]
[1763375618804,0.13994308,142.27,142.26,4.01750768]
[1763375619392,0.13994308,142.27,142.26,26.66870768]
[1763375619775,0.13994308,142.27,142.26,4.01750768]
[1763375620801,0.13994308,142.27,142.26,26.66870768]
[1763375622016,0.34014445,142.28,142.26,26.66870768]
[1763375622198,0.15045019,142.29,142.27,4.72039655]
[1763375622384,0.15045019,142.29,142.28,25.97870768]
[1763375622586,0.15045019,142.29,142.28,26.66870768]
[1763375623601,0.15045019,142.29,142.28,33.69710239]
[1763375623780,0.29006399,142.29,142.28,33.69710239]
[1763375625588,0.1396138,142.29,142.28,33.69710239]
[1763375626207,0.1396138,142.29,142.28,33.52690239]
[1763375626590,0.1396138,142.29,142.28,26.49850768]
[1763375627728,0.1396138,142.29,142.28,33.52690239]
[1763375630605,0.1396138,142.29,142.28,26.49850768]
[1763375630804,0.1396138,142.29,142.28,23.3412]
[1763375631012,0.1396138,142.29,142.28,24.77935023]
[1763375631214,0.1396138,142.29,142.28,25.46935023]
[1763375632023,0.1396138,142.29,142.28,32.49774494]
[1763375632525,0.1396138,142.29,142.28,25.46935023]
[1763375636437,0.1396138,142.29,142.28,32.49774494]
[1763375636931,0.1396138,142.29,142.28,33.20058441]
[1763375640319,0.13437969,142.31,142.29,0.69]
[1763375640543,0.14089914,142.33,142.3,33.99469183]
[1763375640758,0.14089914,142.33,142.32,2.12815023]
[1763375641046,0.14089914,142.33,142.32,9.15456956]
[1763375641250,0.14089914,142.33,142.32,9.80456956]
[1763375641747,0.13422645,142.35,142.32,9.80456956]
[1763375642052,0.13422645,142.35,142.34,22.6512]
[1763375642224,0.14677999,142.37,142.35,22.6512]
[1763375642417,0.13078589,142.38,142.36,26.90750046]
[1763375642622,0.13078589,142.38,142.37,4.90630046]
[1763375642842,0.13078589,142.38,142.37,7.72092242]
[1763375643047,0.13078589,142.38,142.37,5.59277219]
[1763375643342,0.81078589,142.38,142.37,4.94277219]
[1763375643537,0.13078589,142.38,142.37,4.94277219]
[1763375643745,0.27394617,142.38,142.37,4.94277219]
[1763375644447,0.27394617,142.38,142.37,5.59277219]
[1763375645255,0.27394617,142.38,142.37,4.94277219]
[1763375645459,0.27394617,142.38,142.31,15.53922153]
[1763375645460,0.95394617,142.38,142.31,15.53922153]
[1763375645632,0.82316028,142.38,142.36,2.12815023]
[1763375645953,0.68,142.37,142.36,2.12815023]
[1763375648133,0.14316028,142.38,142.36,2.12815023]
[1763375648335,0.14316028,142.38,142.37,2.12815023]
[1763375648547,0.14316028,142.38,142.37,4.94336647]
[1763375649448,0.14316028,142.38,142.37,5.59336647]
[1763375649652,0.14316028,142.38,142.37,7.7215167]
[1763375650251,0.14316028,142.38,142.37,14.10596739]
[1763375651054,0.14316028,142.38,142.37,5.59336647]
[1763375653154,0.14316028,142.38,142.37,4.94336647]
[1763375653344,0.14316028,142.38,142.37,27.59456647]
[1763375653541,0.82316028,142.38,142.37,27.59456647]
[1763375653761,0.14316028,142.38,142.37,27.59456647]
[1763375656747,0.82316028,142.38,142.37,2.12815023]
[1763375657358,0.82316028,142.38,142.35,25.46661439]
[1763375657359,0.82316028,142.38,142.36,2.12815023]
[1763375659357,0.82316028,142.38,142.37,2.12815023]
[1763375662944,0.82316028,142.38,142.36,2.12815023]
[1763375663768,0.12998265,142.37,142.35,22.6512]
[1763375664063,0.12998265,142.37,142.36,2.12815023]
[1763375664266,0.78998265,142.37,142.36,2.12815023]
[1763375665252,0.78998265,142.37,142.36,24.77935023]
[1763375665963,0.78998265,142.37,142.36,2.12815023]
[1763375669580,0.78998265,142.37,142.33,2.12815023]
[1763375669581,102.98998265,142.37,142.33,2.12815023]
[1763375669801,102.98998265,142.37,142.34,22.6512]
[1763375669964,0.66,142.36,142.33,2.12815023]
[1763375670284,0.66,142.36,142.33,24.77935023]
[1763375670584,9.78882769,142.34,142.3,2.12815023]
[1763375670773,9.78882769,142.34,142.31,24.77935023]
[1763375670968,0.68,142.33,142.31,24.77935023]
[1763375674264,0.68,142.35,142.32,2.82815023]
[1763375674463,0.68,142.35,142.33,2.12815023]
[1763375674883,102.32998265,142.37,142.34,2.12815023]
[1763375674884,103.00998265,142.37,142.34,2.12815023]
[1763375675182,0.12998265,142.37,142.36,2.12815023]
[1763375675563,0.12998265,142.37,142.36,2.82815023]
[1763375676165,0.12998265,142.37,142.36,9.85259529]
[1763375677284,0.12998265,142.37,142.36,2.82815023]
[1763375679078,0.12998265,142.37,142.36,9.85259529]
[1763375679278,0.12998265,142.37,142.36,2.82815023]
[1763375679470,0.12998265,142.37,142.36,18.36519621]
[1763375679671,0.13021905,142.38,142.37,22.6512]
[1763375679868,0.13021905,142.38,142.37,34.69434631]
[1763375680269,0.14250102,142.39,142.38,10.64075115]
[1763375680493,0.14250102,142.39,142.38,11.34075115]
[1763375681063,0.14250102,142.39,142.38,2.12815023]
[1763375681374,0.14250102,142.39,142.38,27.59417025]
[1763375681563,0.14250102,142.39,142.38,24.77935023]
[1763375682396,0.82250102,142.39,142.38,24.77935023]
[1763375682596,0.82250102,142.39,142.38,2.12815023]
[1763375683801,0.95881641,142.39,142.38,2.12815023]
[1763375685102,0.27881641,142.39,142.38,2.12815023]
[1763375685590,0.13631539,142.39,142.38,2.12815023]
[1763375688791,0.81631539,142.39,142.38,2.12815023]
[1763375690784,0.81631539,142.39,142.38,3.32173557]
[1763375692001,0.13631539,142.39,142.38,3.32173557]
[1763375695005,0.81631539,142.39,142.37,2.81501812]
[1763375695314,0.81631539,142.39,142.38,3.32173557]
[1763375695499,0.81631539,142.39,142.38,25.97293557]
[1763375698999,0.81631539,142.39,142.38,3.32173557]
[1763375699396,0.13631539,142.39,142.38,3.32173557]
[1763375702488,0.13631539,142.39,142.38,4.03173557]
[1763375702917,0.13631539,142.39,142.38,3.32173557]
[1763375703223,0.13631539,142.39,142.38,14.37692949]
[1763375703511,0.13631539,142.39,142.38,7.35347114]
[1763375703704,0.28860753,142.39,142.38,7.35347114]
[1763375704309,0.28860753,142.39,142.38,26.68293557]
[1763375704820,0.28860753,142.39,142.38,4.03173557]
[1763375705698,0.15229214,142.39,142.35,7.73470549]
[1763375705897,0.87229214,142.39,142.38,3.32173557]
[1763375708321,0.87229214,142.39,142.36,25.97293557]
[1763375708502,0.87229214,142.39,142.31,0.71]
[1763375708503,9.78882769,142.38,142.31,0.71]
[1763375708709,0.72,142.37,142.31,0.71]
[1763375708907,0.72,142.37,142.34,3.32173557]